Cogmind - Beta 12 X1 @@@ ROGUE MODE // 2022.08.22 @ 17:09:59 Player: btmk16 Result: Self-destructed Performance ------------- Evolutions (4) 2000 Regions Visited (7) 1400 Robots Destroyed (7) 35 Value Destroyed (187) 187 Prototype IDs (0) 0 Alien Tech Used (0) 0 Bonus (500) 500 TOTAL SCORE: 4122 Bonus ------- Entered DSFs 500 Cogmind --------- Core Integrity 695/850 Matter 161/300 Energy 100/100 System Corruption 0% Temperature Cool (0) Movement Core (50) Location -6/Lower Caves Parts ------- > --- POWER (1) -------- (None) > --- PROPULSION (6) --- Improved Gravmag System > --- UTILITY (6) ------ Terrain Scan Processor Terrain Scan Processor Improved Light Armor Plating > --- WEAPON (2) ------- (None) > --- INVENTORY (5) ---- Light Armor Plating Heavy Assault Cannon Mace Peak State ------------ > --- POWER ------------ Ion Engine > --- PROPULSION ------- VTOL Module VTOL Module VTOL Module VTOL Module > --- UTILITY ---------- Small Storage Unit Improved Sensor Array Terrain Scan Processor > --- WEAPON ----------- Heavy Assault Cannon > --- INVENTORY -------- Light Ion Engine Improved Terrain Scanner Seismic Detector Light Armor Plating Medium Laser Mace [Rating: 21] Favorites ----------- Power Ion Engine Engine Ion Engine Propulsion VTOL Module Treads Light Treads Hover Unit Improved Gravmag System Flight Unit VTOL Module Utility Terrain Scan Processor Device Improved Sensor Array Storage Small Storage Unit Processor Terrain Scan Processor Protection Improved Light Armor Plating Weapon Medium Laser Energy Gun Medium Laser Ballistic Cannon Heavy Assault Cannon Launcher Heavy Rocket Launcher Impact Weapon Mace Build | -11 -10 -9 -8 -7 -7 -6 -6 ------- Run | Scr Mat Mat Mat Fac DSF Fac Low Slots Evolved 8 | . . 2 2 2 . 2 . Power . | . . . . . . . . Propulsion 4 | . . 2 . 2 . . . Utility 4 | . . . 2 . . 2 . Weapon . | . . . . . . . . Parts Attached 22 | 4 3 6 3 . . 4 2 Power 2 | . 1 . 1 . . . . Engine 2 | . 1 . 1 . . . . Core . | . . . . . . . . Reactor . | . . . . . . . . Propulsion 7 | 2 2 2 . . . 1 . Treads 2 | 2 . . . . . . . Leg . | . . . . . . . . Wheel . | . . . . . . . . Hover 1 | . . . . . . 1 . Flight 4 | . 2 2 . . . . . Utility 7 | . . 3 1 . . 3 . Device 2 | . . 2 . . . . . Storage 1 | . . 1 . . . . . Processor 2 | . . . 1 . . 1 . Hackware . | . . . . . . . . Protection 2 | . . . . . . 2 . Artifact . | . . . . . . . . Weapon 6 | 2 . 1 1 . . . 2 Energy Gun 2 | 2 . . . . . . . Energy Cannon . | . . . . . . . . Ballistic Gun . | . . . . . . . . Ballistic Cannon 1 | . . . 1 . . . . Launcher 2 | . . . . . . . 2 Special Weapon . | . . . . . . . . Impact Weapon 1 | . . 1 . . . . . Slashing Weapon . | . . . . . . . . Piercing Weapon . | . . . . . . . . Special Melee Weapon . | . . . . . . . . Unidentified Prototypes . | . . . . . . . . Parts Lost 6 | . . . . . 4 . 2 Power . | . . . . . . . . Propulsion 4 | . . . . . 3 . 1 Utility 1 | . . . . . 1 . . Weapon 1 | . . . . . . . 1 Highest Loss Streak 4 | . . . . . 4 . 2 To Critical Strikes . | . . . . . . . . Average Slot Usage (%) 53 | . 57 93 86 61 26 19 35 Engine 3 | . . 11 9 7 1 . . Treads 2 | . 21 . . . . . . Hover 1 | . . . . . . 3 6 Flight 19 | . 7 44 36 30 12 6 6 Device 3 | . . 8 9 7 1 . . Storage 3 | . . 6 9 7 3 . . Processor 6 | . . . 6 7 7 7 13 Protection 1 | . . . . . . 2 6 Energy Gun 6 | . 28 13 7 . . . . Impact Weapon 2 | . . 8 7 . . . . Naked Turns . | . . . . . . . . Heaviest Build 15 | 3 6 13 15 11 11 3 3 Greatest Support 16 | 3 8 16 16 16 16 4 4 Greatest Overweight (x) 1 | . . . . . 1 . . Average Overweight (x) . | . . . . . . . . Largest Inventory Capacity 8 | 5 5 8 8 8 8 5 5 Average Capacity 6 | 5 5 6 8 8 6 5 5 Most Carried 8 | 3 5 6 8 8 8 5 5 Average Carried 5 | 1 4 5 6 8 6 4 4 Final Capacity 8 | 5 5 8 8 8 5 5 5 Final Carried 8 | 3 5 6 8 8 5 5 4 Class Distribution -------------------- 65% | Mutant 34% | Sprinter Dominant Class ---------------- Mutant | -10/Materials Sprinter | -9/Materials Sprinter | -8/Materials Sprinter | -7/Factory Mutant | -7/DSF Mutant | -6/Factory Mutant | -6/Lower Caves Resources | -11 -10 -9 -8 -7 -7 -6 -6 ----------- Run | Scr Mat Mat Mat Fac DSF Fac Low Matter Collected 347 | 143 . . 58 . 3 . 143 Remotely . | . . . . . . . . Salvage Created 318 | . 47 58 58 . . . 155 Parts 8 | . 1 3 2 . . . 2 Haulers Intercepted 3 | . 1 1 1 . . . . Recyclers Shooed . | . . . . . . . . Parts Field Recycled . | . . . . . . . . Retrieved Matter . | . . . . . . . . Parts Self-Destructed 2 | . . . . . . . 2 Prevented . | . . . . . . . . Kills | -11 -10 -9 -8 -7 -7 -6 -6 ------- Run | Scr Mat Mat Mat Fac DSF Fac Low Combat Hostiles Destroyed 4 | . . . . . . . 4 AOE 4 | . . . . . . . 4 Classes Destroyed 4 | . 1 . . . . . 3 Hauler 3 | . 1 1 1 . . . . Swarmer 1 | . . . . . . . 1 Grunt 2 | . . . . . . . 2 Sentry 1 | . . . . . . . 1 Best Kill Streak 4 | . 1 1 1 . . . 4 Combat Bots Only 4 | . . . . . . . 4 Max Kills in Single Turn 3 | . 1 1 1 . . . 3 Gunslinging . | . . . . . . . . Exploded 3 | . . . . . . . 3 Melee . | . . . . . . . . Uniques/NPCs Destroyed . | . . . . . . . . Combat | -11 -10 -9 -8 -7 -7 -6 -6 -------- Run | Scr Mat Mat Mat Fac DSF Fac Low Damage Taken 778 | . . . 49 . 345 19 365 Core 393 | . . . 20 . 218 . 155 Absorbed by Shields 85 | . . . . . 85 . . Core Remaining (%) 92 | 100 100 100 96 . 68 . . Volleys Fired 11 | . 2 . 5 . . . 4 Largest 2 | . 2 . 1 . . . 1 Hottest 90 | . 90 . 60 . . . 39 Shots Fired 13 | . 4 . 5 . . . 4 Gun 4 | . 4 . . . . . . Cannon 5 | . . . 5 . . . . Launcher 4 | . . . . . . . 4 Special . | . . . . . . . . Kinetic 5 | . . . 5 . . . . Thermal 4 | . 4 . . . . . . Explosive 4 | . . . . . . . 4 Electromagnetic . | . . . . . . . . Robot Hit Streak 5 | . 3 . . . . . 5 Robot Miss Streak 2 | . . . . . . . 2 Penetration Max . | . . . . . . . . Secondary Targets . | . . . . . . . . Shots Hit Robots 7 | . 3 1 1 . . . 2 Core Hits 11 | . 2 1 1 . . . 7 Critical Kills 1 | . . 1 . . . . . Critical Parts Destroyed . | . . . . . . . . Critical Strikes 1 | . . 1 . . . . . Smash 1 | . . 1 . . . . . Melee Attacks 4 | . . 1 3 . . . . Impact 4 | . . 1 3 . . . . Slashing . | . . . . . . . . Piercing . | . . . . . . . . Sneak Attacks 2 | . . 1 1 . . . . Combat Hostiles . | . . . . . . . . Follow-up Attacks . | . . . . . . . . Damage Inflicted 776 | . 37 64 87 . . . 588 Guns 37 | . 37 . . . . . . Cannons . | . . . . . . . . Explosions 588 | . . . . . . . 588 Melee 151 | . . 64 87 . . . . Ramming . | . . . . . . . . Kinetic . | . . . . . . . . Thermal 37 | . 37 . . . . . . Explosive 588 | . . . . . . . 588 Electromagnetic . | . . . . . . . . Impact 151 | . . 64 87 . . . . Slashing . | . . . . . . . . Piercing . | . . . . . . . . Highest Corruption . | . . . . . . . . Average Corruption . | . . . . . . . . Corruption Purged . | . . . . . . . . Corruption Blocked . | . . . . . . . . Overload Shots . | . . . . . . . . Overflow Damage 74 | . . . . . . . 74 Projectiles . | . . . . . . . . Explosions 74 | . . . . . . . 74 Melee . | . . . . . . . . Knockbacks . | . . . . . . . . Impact . | . . . . . . . . Kinetic . | . . . . . . . . Secondary . | . . . . . . . . Self-Inflicted Damage 214 | . . . . . . . 214 Shots 4 | . . . . . . . 4 Rammed . | . . . . . . . . Targets Rammed . | . . . . . . . . Kicked . | . . . . . . . . Crushed . | . . . . . . . . Highest Temperature 42 | . 30 . 42 . . . 3 Average Temperature 16 | . 15 . 18 . . . 3 Received Heat Transfer 45 | . . . 9 . . 9 27 Siege Activations . | . . . . . . . . Robots Corrupted . | . . . . . . . . Combat Hostiles . | . . . . . . . . Parts Fried . | . . . . . . . . Impact Corruptions . | . . . . . . . . Robots Melted . | . . . . . . . . Combat Hostiles . | . . . . . . . . Parts Melted . | . . . . . . . . Heat Transferred 99 | . 99 . . . . . . Parts Sabotaged . | . . . . . . . . Parts Stolen . | . . . . . . . . Parts Stripped . | . . . . . . . . Power Chain Reactions . | . . . . . . . . Missiles Intercepted . | . . . . . . . . Alert | -11 -10 -9 -8 -7 -7 -6 -6 ------- Run | Scr Mat Mat Mat Fac DSF Fac Low Peak Influence 207 | . 7 41 207 98 68 58 . Initial 93 | . . 2 16 93 68 14 . Average 41 | . 3 13 100 93 34 32 . Maximum Alert Level 1 | . . . 1 . . . . Low Security (%) 99 | 100 100 100 96 100 100 100 . Level 1 . | . . . 3 . . . . Level 2 . | . . . . . . . . Level 3 . | . . . . . . . . Level 4 . | . . . . . . . . Level 5 . | . . . . . . . . High Security . | . . . . . . . . Max Security . | . . . . . . . . Squads Dispatched 4 | . . 1 2 . . 1 . Investigation 2 | . . 1 . . . 1 . Extermination . | . . . . . . . . Reinforcement 2 | . . . 2 . . . . Assault . | . . . . . . . . Garrison . | . . . . . . . . Intercept . | . . . . . . . . Searches Triggered . | . . . . . . . . Construction Impeded . | . . . . . . . . Haulers Reinforced . | . . . . . . . . Active Scanning Responses . | . . . . . . . . Cargo Convoy Interrupts . | . . . . . . . . Stealth | -11 -10 -9 -8 -7 -7 -6 -6 --------- Run | Scr Mat Mat Mat Fac DSF Fac Low Distress Signals 1 | . . . 1 . . . . Communications Jammed . | . . . . . . . . Distress Signals . | . . . . . . . . Times Spotted 31 | . . 3 14 . 1 1 12 Peak Tracking Total 11 | . . 4 11 . 1 1 9 Tactical Retreats 3 | . . . 2 . . . 1 Traps | -11 -10 -9 -8 -7 -7 -6 -6 ------- Run | Scr Mat Mat Mat Fac DSF Fac Low Traps Triggered 3 | . . . . . 3 . . Indirectly . | . . . . . . . . Trap Hack Attempts . | . . . . . . . . Triggered . | . . . . . . . . Disarmed . | . . . . . . . . Reprogrammed . | . . . . . . . . Reused . | . . . . . . . . Traps Extracted . | . . . . . . . . Installed . | . . . . . . . . Triggered . | . . . . . . . . Machines | -11 -10 -9 -8 -7 -7 -6 -6 ---------- Run | Scr Mat Mat Mat Fac DSF Fac Low Machines Disabled . | . . . . . . . . Max in Single Turn . | . . . . . . . . Machines Sabotaged . | . . . . . . . . Garrisons Compromised . | . . . . . . . . Overloaded Fab Kills . | . . . . . . . . Hacking | -11 -10 -9 -8 -7 -7 -6 -6 --------- Run | Scr Mat Mat Mat Fac DSF Fac Low Machines Accessed 6 | . . 4 . 1 . 1 . Terminals 6 | . . 4 . 1 . 1 . Fabricators . | . . . . . . . . Repair Stations . | . . . . . . . . Recycling Units . | . . . . . . . . Scanalyzers . | . . . . . . . . Garrison Access . | . . . . . . . . Total Hacks 16 | . . 12 . 2 . 2 . Successful 9 | . . 7 . 1 . 1 . Failed 7 | . . 5 . 1 . 1 . Catastrophic 2 | . . 2 . . . . . Database Lockouts . | . . . . . . . . Manual 14 | . . 12 . . . 2 . Terminals 16 | . . 12 . 2 . 2 . Fabricators . | . . . . . . . . Repair Stations . | . . . . . . . . Recycling Units . | . . . . . . . . Scanalyzers . | . . . . . . . . Garrison Access . | . . . . . . . . Terminal Hacks 4 | . . 3 . 1 . . . Open DSF 1 | . . . . 1 . . . Level Access Points 1 | . . 1 . . . . . Terminal Index 1 | . . 1 . . . . . Zone Layout 1 | . . 1 . . . . . Fabricator Hacks . | . . . . . . . . Repair Station Hacks . | . . . . . . . . Recycling Unit Hacks . | . . . . . . . . Scanalyzer . | . . . . . . . . Garrison Access Hacks . | . . . . . . . . Unauthorized Hacks 5 | . . 4 . . . 1 . Terminals 5 | . . 4 . . . 1 . Track 1 | . . 1 . . . . . Botnet 4 | . . 3 . . . 1 . Fabricators . | . . . . . . . . Repair Stations . | . . . . . . . . Recycling Units . | . . . . . . . . Scanalyzers . | . . . . . . . . Garrison Access . | . . . . . . . . Data Cores Recovered . | . . . . . . . . Used . | . . . . . . . . Hacking Detections 5 | . . 3 . 1 . 1 . Full Trace Events 3 | . . 2 . . . 1 . Feedback Events . | . . . . . . . . Feedback Blocked . | . . . . . . . . Robot Schematics Acquired . | . . . . . . . . Robots Built . | . . . . . . . . Authchips . | . . . . . . . . Time . | . . . . . . . . Total Robot Build Rating . | . . . . . . . . Part Schematics Acquired . | . . . . . . . . Parts Built . | . . . . . . . . Authchips . | . . . . . . . . Time . | . . . . . . . . Total Part Build Rating . | . . . . . . . . Parts Repaired . | . . . . . . . . Time . | . . . . . . . . Parts Recycled . | . . . . . . . . Recycled Matter . | . . . . . . . . Retrieved Matter . | . . . . . . . . Retrieved Components . | . . . . . . . . Parts Scanalyzed . | . . . . . . . . Part Schematics Acquired . | . . . . . . . . Parts Damaged . | . . . . . . . . Bothacking | -11 -10 -9 -8 -7 -7 -6 -6 ------------ Run | Scr Mat Mat Mat Fac DSF Fac Low Used RIF Installer . | . . . . . . . . Robots Hacked . | . . . . . . . . Non-combat . | . . . . . . . . Combat . | . . . . . . . . Robot Hacks Applied . | . . . . . . . . Relay Couplers Released . | . . . . . . . . Fabnet Peak Effective % . | . . . . . . . . Robots Rewired . | . . . . . . . . Allies Hacked . | . . . . . . . . Hacks Repelled . | . . . . . . . . Allies | -11 -10 -9 -8 -7 -7 -6 -6 -------- Run | Scr Mat Mat Mat Fac DSF Fac Low Total Allies . | . . . . . . . . Largest Group . | . . . . . . . . Highest-Rated Group . | . . . . . . . . Highest-Rated Ally . | . . . . . . . . Total Orders . | . . . . . . . . Ally Attacks . | . . . . . . . . Total Damage . | . . . . . . . . Kills . | . . . . . . . . Allies Corrupted . | . . . . . . . . Allies Melted . | . . . . . . . . Intel | -11 -10 -9 -8 -7 -7 -6 -6 ------- Run | Scr Mat Mat Mat Fac DSF Fac Low Robot Analysis Total . | . . . . . . . . Derelict Logs Recovered . | . . . . . . . . Drone Launches . | . . . . . . . . Drone Recoveries . | . . . . . . . . Exploration | -11 -10 -9 -8 -7 -7 -6 -6 ------------- Run | Scr Mat Mat Mat Fac DSF Fac Low Turns Passed 393 | 29 48 49 81 10 53 67 56 Spaces Moved 830 | 39 69 127 186 36 71 175 127 Core 97 | 39 56 . . . . . 2 Treads . | . . . . . . . . Legs . | . . . . . . . . Wheels . | . . . . . . . . Hover . | . . . . . . . . Flight 733 | . 13 127 186 36 71 175 125 Fastest Speed 26 | 50 32 26 26 26 26 35 35 Average Speed 33 | 50 46 26 26 26 37 35 35 Slowest Speed 115 | 50 50 26 26 26 115 35 50 Overloaded Moves . | . . . . . . . . Propulsion Burnouts . | . . . . . . . . Robots Hopped 7 | . . 1 4 . 1 1 . Cave-ins Triggered . | . . . . . . . . Exploration Rate (%) 21 | 2 20 20 24 3 73 6 27 Regions Visited 7 Branch Regions 1 Pre-discovered Areas . | . . . . . . . . Known Exits Taken 2 | . . 1 . 1 . . . Unknown Exits Taken 4 | 1 1 . 1 . . 1 . Scrap Searched . | . . . . . . . . Spaces Dug 3 | . . . 3 . . . . Terrain Destroyed 45 | . . . 7 . . . 38 Melee 2 | . . . 2 . . . . Projectile 5 | . . . 5 . . . . AOE 38 | . . . . . . . 38 Terrain Rammed . | . . . . . . . . Walls Destroyed . | . . . . . . . . Machines Disabled . | . . . . . . . . Actions | -11 -10 -9 -8 -7 -7 -6 -6 --------- Run | Scr Mat Mat Mat Fac DSF Fac Low Total 909 | 45 80 139 201 35 97 178 134 Wait 6 | . . . 6 . . . . Move 809 | 38 68 124 177 35 68 172 127 Hop 7 | . . 1 4 . 1 1 . Pick Up 11 | 3 4 3 . . 1 . . Fast Attach 14 | 4 2 4 1 . . 3 . Attach 7 | . 1 2 1 . . 1 2 Detach 5 | . . 1 2 . . 1 1 Swap 1 | . . . 1 . . . . Drop 10 | . 3 3 1 . 3 . . Fire 11 | . 2 . 5 . . . 4 Melee 4 | . . 1 3 . . . . Ram . | . . . . . . . . Kick . | . . . . . . . . Crush . | . . . . . . . . Escape Stasis 24 | . . . . . 24 . . Rewire . | . . . . . . . . Trap . | . . . . . . . . Miscellaneous . | . . . . . . . . Route ------- -11/Scrapyard -10/Materials -9/Materials (discovered 3 exits: *Mat x3) -8/Materials -7/Factory -7/DSF -6/Factory -6/Lower Caves History --------- Turn | Location | Event 10 | -11/Scrapyard | Discovered new exit (range 15) 30 | -11/Scrapyard | Entered Materials 76 | -10/Materials | Discovered new exit (range 5) 78 | -10/Materials | Entered another Materials area 78 | -9/Materials | Evolved 2 slots: Propulsion x2 107 | -9/Materials | Identified exit to Materials 127 | -9/Materials | Entered another Materials area 127 | -8/Materials | Evolved 2 slots: Utility x2 203 | -8/Materials | Discovered new exit (range 7) 208 | -8/Materials | Entered Factory 208 | -7/Factory | Evolved 2 slots: Propulsion x2 217 | -7/Factory | Identified exit to DSF 218 | -7/Factory | Entered DSF 234 | -7/DSF | Additional patrols routed to DSF 264 | -7/DSF | Lost 4 parts (3n1u) 264 | -7/DSF | Discovered new exit (range 16) 271 | -7/DSF | Entered Factory 271 | -6/Factory | Evolved 2 slots: Utility x2 329 | -6/Factory | Discovered new exit (range 16) 338 | -6/Factory | Entered Lower Caves 340 | -6/Lower Caves | Attracted the attention of an 0b10 checkpoint 390 | -6/Lower Caves | Attracted the attention of an 0b10 outpost 394 | -6/Lower Caves | Self-destructed Last Messages --------------- 00339_ S-27 Virus destroyed. 00339_ Destroyed Adv. Heat Sink. 00340_ Y-54 Guardian: "INTERCEPTING UNREGISTERED DERELICT." 00341_ Destroyed Carbon-fiber Leg. 00341_ Y-54 Guardian destroyed. 00341_ G-50 Soldier destroyed. 00344_ Acquired 48 matter. 00345_ Acquired 47 matter. 00389_ G-50 Soldier springs to life. 00389_ S-27 Virus springs to life. 00389_ B-48 Gladiator springs to life. 00389_ G-50 Soldier springs to life. 00390_ Y-64 Sentinel: "DETECTED UNIDENTIFIED DERELICT." 00390_ The unstable cave ceiling collapses. 00390_ S-27 Virus springs to life. 00391_ Hvy. Rocket Launcher destroyed. 00391_ Destroyed Hvy. Rocket Launcher. 00391_ Penetrated by Slug. 00391_ VTOL Module destroyed. 00394_ Y-64 Sentinel: "REQUESTING BACKUP." Map ----- +----------------------------------------------------+ | #??# ??## ### ##???## ## | | ### #### #????# # | | ## ## ## #????# ## | | ### ##????# ### | | ## #### ####?## #?## | | #### ### ### ##?## ## | | ###??# #?## #? | | ###???# ## #### ##? | | ##????# #### ### #### #?? | | ##?????# ##?## ##?## ### ### | | #??????# ###?## ##???# | | #??????## #???# #????# | | #???????###### ???# #????## | | #????????????# ??## ########### ## | | ##???###??????# #??## #" "" #??# ### | | #####?# #?????? ????# # """ #?# #?## # | | # ## #?????? #????## # "" "#?# #???## | | #??????? ###?????## # #??# ##????? | | #?????????????????# # ##?#####?????? | | ##????????######???# ##??????????? | | * ! #?????????# #??### ##?????????? | | ##?????????? ###?# ##????????? | | #????????????? # ### ##???????? | | #??????????????# # ##??????? | | #?????????????## # #??????? | | # #?????????????# @ # #??????? | | #######???? ## #??????? | | #????????????????# ##??????? | | #???????????????# s # ##???????? | | ???????????????# b # ## ##????????? | | ???????????? $s gs # ### ##?##?????????? | | ??????????? $gY #####?#####?????????????? | | ???????????" # ####????????????????????????? | | ???????????"""?# ????????????????????????????? | | #???????????#??## ?????????????????????????????? | | #??????????????? ?????????????????????????????? | | ???????????????##??????????????????????????????? | | ???????????????????????????????????????????????? | | ?????????????????????????????????????????????????? | | ?????????????????????????????????????????????????? | | ?????????????????????????????????????????????????? | | ?????????????????????????????????????????????????? | | ?????????????????????????????????????????????????? | | ?????????????????????????????????????????????????? | | ?????????????????????????????????????????????????? | | ?????????????????????????????????????????????????? | | ?????????????????????????????????????????????????? | | ?????????????????????????????????????????????????? | | ?????????????????????????????????????????????????? | | ?????????????????????????????????????????????????? | +----------------------------------------------------+ Best States ------------- Heat Dissipation 37 Energy Generation 10 Energy Capacity 250 Matter Stores 203 Matter Capacity 300 Sight Range 16 Robot Scan Range 15 Terrain Scan Range 16 Terrain Scan Density 160 Armor Coverage 150 Evasion (%) 64 Item Schematics ----------------- None Robot Schematics ------------------ None Fabricated ------------ Nothing Alien Tech Used ----------------- None Achievements -------------- None Challenges ------------ None Game ------ Seed GrenadeBehemothLeg Manual? 0 Play Time 00:09:56 Cumulative 467.2 hours Start 2022.08.22 @ 17:00:55 End 2022.08.22 @ 17:09:59 Sessions 1 Manual Loads 0 Difficulty Rogue Special Mode None Game No. 516 Rogue 515 Adventurer 0 Explorer 1 Win Type - Total 14 Types 9/0/2/3/0/0/0/0/0 Lore% 79 Gallery% 88 Achievement% 69 Wizard Run 0 Options --------- ASCII 0 Keyboard 1 Movement Vi Keybinds 0 Fullscreen 1 Font 18/SmallcapsGlow Map View 76x50 Tactical HUD 1 Map Filters NONE Filters NONE Steam 1 RUN: 30783ff3-823c-4888-8fe2-a33139f7b847